[Event "*** Titled Tuesday Blitz"]
[Site "Chess.com"]
[Date "2018.01.02"]
[Round "9"]
[White "sandager"]
[Black "Maili15"]
[Result "1-0"]
[WhiteElo "1973"]
[BlackElo "2267"]
[TimeControl "180+2"]
[EndTime "15:01:03 PST"]
[Termination "sandager won by checkmate"]

1. e4 {[%clk 0:03:01.9]} 1... c5 {[%clk 0:02:59.9]} 2. Nf3 {[%clk 0:03:01.3]}
2... d6 {[%clk 0:02:59.8]} 3. d4 {[%clk 0:03:02.6]} 3... cxd4 {[%clk 0:03:01.7]}
4. Nxd4 {[%clk 0:03:03.2]} 4... Nf6 {[%clk 0:03:03.3]} 5. Nc3 {[%clk 0:03:04.4]}
5... a6 {[%clk 0:03:05]} 6. Bg5 {[%clk 0:03:04.4]} 6... e6 {[%clk 0:03:05.7]} 7.
f4 {[%clk 0:03:05.1]} 7... h6 {[%clk 0:03:03.4]} 8. Bh4 {[%clk 0:03:04.2]} 8...
Qb6 {[%clk 0:03:04.9]} 9. Qd2 {[%clk 0:02:57.2]} 9... Qxb2 {[%clk 0:03:01.8]}
10. Rb1 {[%clk 0:02:56.1]} 10... Qa3 {[%clk 0:03:03.2]} 11. Bf2 {[%clk
0:02:57.1]} 11... Nbd7 {[%clk 0:02:55.8]} 12. Be2 {[%clk 0:02:56.8]} 12... Be7
{[%clk 0:02:54.5]} 13. O-O {[%clk 0:02:56.4]} 13... Qa5 {[%clk 0:02:53.2]} 14.
Bf3 {[%clk 0:02:42.3]} 14... O-O {[%clk 0:02:49.5]} 15. Rfe1 {[%clk 0:02:25.5]}
15... Qc7 {[%clk 0:02:45.9]} 16. Kh1 {[%clk 0:02:09]} 16... Rb8 {[%clk
0:02:44.3]} 17. e5 {[%clk 0:02:00.3]} 17... dxe5 {[%clk 0:02:34.9]} 18. fxe5
{[%clk 0:02:00.1]} 18... Nxe5 {[%clk 0:02:24.2]} 19. Rxe5 {[%clk 0:01:55.9]}
19... Qxe5 {[%clk 0:02:02.5]} 20. Bg3 {[%clk 0:01:56.3]} 20... Qxg3 {[%clk
0:02:01.8]} 21. hxg3 {[%clk 0:01:56.3]} 21... Rd8 {[%clk 0:02:00.8]} 22. Qf4
{[%clk 0:01:43.7]} 22... Bd6 {[%clk 0:01:59.2]} 23. Qh4 {[%clk 0:01:38.2]} 23...
Be5 {[%clk 0:01:42.6]} 24. Nce2 {[%clk 0:01:30.7]} 24... g5 {[%clk 0:01:15.7]}
25. Qxh6 {[%clk 0:01:28.7]} 25... Nh7 {[%clk 0:00:42.8]} 26. c3 {[%clk
0:01:15.3]} 26... Bg7 {[%clk 0:00:35.9]} 27. Qh5 {[%clk 0:01:14.6]} 27... Bd7
{[%clk 0:00:27.5]} 28. Qh2 {[%clk 0:00:56.6]} 28... e5 {[%clk 0:00:24.8]} 29.
Nb3 {[%clk 0:00:54.1]} 29... Be6 {[%clk 0:00:18]} 30. Qg1 {[%clk 0:00:53.6]}
30... g4 {[%clk 0:00:17]} 31. Be4 {[%clk 0:00:50.9]} 31... Ng5 {[%clk
0:00:13.9]} 32. Qe3 {[%clk 0:00:45.8]} 32... Nxe4 {[%clk 0:00:12.2]} 33. Qxe4
{[%clk 0:00:45.3]} 33... f5 {[%clk 0:00:13.7]} 34. Qc2 {[%clk 0:00:43.7]} 34...
Kf7 {[%clk 0:00:15]} 35. Nc5 {[%clk 0:00:43.2]} 35... Bd5 {[%clk 0:00:15.3]} 36.
c4 {[%clk 0:00:41]} 36... Rh8+ {[%clk 0:00:15.4]} 37. Kg1 {[%clk 0:00:41.1]}
37... Be6 {[%clk 0:00:15.1]} 38. Nxe6 {[%clk 0:00:39.2]} 38... Kxe6 {[%clk
0:00:17]} 39. c5 {[%clk 0:00:35.4]} 39... Rh5 {[%clk 0:00:16.4]} 40. Rb6+ {[%clk
0:00:35.5]} 40... Ke7 {[%clk 0:00:17]} 41. Qc4 {[%clk 0:00:35.3]} 41... Rbh8
{[%clk 0:00:14.5]} 42. Qe6+ {[%clk 0:00:35.7]} 42... Kf8 {[%clk 0:00:15.5]} 43.
Kf1 {[%clk 0:00:34.2]} 43... Rh1+ {[%clk 0:00:16]} 44. Ng1 {[%clk 0:00:34.7]}
44... e4 {[%clk 0:00:15.8]} 45. Rxb7 {[%clk 0:00:32.9]} 45... Rxg1+ {[%clk
0:00:13.6]} 46. Kxg1 {[%clk 0:00:31.9]} 46... Bd4+ {[%clk 0:00:15.5]} 47. Kf1
{[%clk 0:00:33]} 47... Rh1+ {[%clk 0:00:17.4]} 48. Ke2 {[%clk 0:00:33.8]} 48...
Bxc5 {[%clk 0:00:15.8]} 49. Qf7# {[%clk 0:00:33.6]} 1-0

[Event "*** Titled Tuesday Blitz"]
[Site "Chess.com"]
[Date "2018.01.02"]
[Round "9"]
[White "TST2014"]
[Black "Hanging_pointer"]
[Result "0-1"]
[WhiteElo "2298"]
[BlackElo "2260"]
[TimeControl "180+2"]
[EndTime "15:01:14 PST"]
[Termination "Hanging_pointer won on time"]

1. d4 {[%clk 0:03:01.9]} 1... Nf6 {[%clk 0:03:00.7]} 2. c4 {[%clk 0:03:01.1]}
2... e6 {[%clk 0:03:01.7]} 3. Nf3 {[%clk 0:03:01.6]} 3... d5 {[%clk 0:03:01.9]}
4. Nc3 {[%clk 0:03:01.2]} 4... dxc4 {[%clk 0:03:03.1]} 5. e3 {[%clk 0:03:00.4]}
5... a6 {[%clk 0:03:03.8]} 6. Bxc4 {[%clk 0:03:01.1]} 6... b5 {[%clk 0:03:04.6]}
7. Bd3 {[%clk 0:03:02.6]} 7... Bb7 {[%clk 0:03:05.8]} 8. O-O {[%clk 0:03:00.9]}
8... Nbd7 {[%clk 0:03:06.8]} 9. Qe2 {[%clk 0:03:00.9]} 9... c5 {[%clk
0:03:07.7]} 10. a4 {[%clk 0:02:56.7]} 10... b4 {[%clk 0:02:57.3]} 11. Nd1 {[%clk
0:02:47.2]} 11... Qc7 {[%clk 0:02:45.5]} 12. a5 {[%clk 0:02:44.5]} 12... Bd6
{[%clk 0:02:43.7]} 13. e4 {[%clk 0:02:44.1]} 13... cxd4 {[%clk 0:02:42]} 14. Bg5
{[%clk 0:02:35]} 14... e5 {[%clk 0:01:57.6]} 15. Nh4 {[%clk 0:02:33.5]} 15... h6
{[%clk 0:01:53.9]} 16. Bd2 {[%clk 0:02:32.4]} 16... g6 {[%clk 0:01:37.8]} 17. b3
{[%clk 0:02:14]} 17... Kf8 {[%clk 0:01:35.6]} 18. Nb2 {[%clk 0:02:13.8]} 18...
Nc5 {[%clk 0:01:33.6]} 19. Rfc1 {[%clk 0:02:03.5]} 19... Qe7 {[%clk 0:01:30.4]}
20. Bxb4 {[%clk 0:02:00.5]} 20... Nxb3 {[%clk 0:01:26.7]} 21. Bxd6 {[%clk
0:01:56.7]} 21... Qxd6 {[%clk 0:01:28.5]} 22. Nc4 {[%clk 0:01:54.8]} 22... Qe7
{[%clk 0:01:18.8]} 23. Nb6 {[%clk 0:01:51.1]} 23... Nxc1 {[%clk 0:01:05.7]} 24.
Rxc1 {[%clk 0:01:49.8]} 24... Rd8 {[%clk 0:01:06.3]} 25. Nf3 {[%clk 0:01:39.7]}
25... Kg7 {[%clk 0:01:05.2]} 26. Bxa6 {[%clk 0:01:29.2]} 26... Bxe4 {[%clk
0:01:03.7]} 27. Nd2 {[%clk 0:01:25.1]} 27... Bd5 {[%clk 0:00:59.3]} 28. Bb5
{[%clk 0:01:12.2]} 28... e4 {[%clk 0:00:39.8]} 29. Ra1 {[%clk 0:01:10.8]} 29...
e3 {[%clk 0:00:38.8]} 30. fxe3 {[%clk 0:01:05.3]} 30... dxe3 {[%clk 0:00:40.7]}
31. Ndc4 {[%clk 0:01:05.3]} 31... Qc5 {[%clk 0:00:33.1]} 32. Rb1 {[%clk
0:00:54.4]} 32... Bxc4 {[%clk 0:00:24.6]} 33. Nxc4 {[%clk 0:00:50.7]} 33... Rb8
{[%clk 0:00:21.3]} 34. Nxe3 {[%clk 0:00:36.3]} 34... Rhe8 {[%clk 0:00:17.7]} 35.
Kf2 {[%clk 0:00:29.4]} 35... Rxe3 {[%clk 0:00:18.3]} 36. Qc4 {[%clk 0:00:23.1]}
36... Re5+ {[%clk 0:00:15.1]} 37. Qxc5 {[%clk 0:00:18.8]} 37... Rxc5 {[%clk
0:00:16.8]} 38. a6 {[%clk 0:00:18.9]} 38... Rcxb5 {[%clk 0:00:17.5]} 39. a7
{[%clk 0:00:20]} 39... Rxb1 {[%clk 0:00:18.1]} 40. a8=Q {[%clk 0:00:19.5]} 40...
Rxa8 {[%clk 0:00:19]} 0-1

[Event "*** Titled Tuesday Blitz"]
[Site "Chess.com"]
[Date "2018.01.02"]
[Round "9"]
[White "IamSchrodingersCat"]
[Black "jposthuma"]
[Result "1-0"]
[WhiteElo "2380"]
[BlackElo "2316"]
[TimeControl "180+2"]
[EndTime "15:01:43 PST"]
[Termination "IamSchrodingersCat won by resignation"]

1. e4 {[%clk 0:03:01.9]} 1... c6 {[%clk 0:02:57.7]} 2. Nc3 {[%clk 0:03:02]} 2...
d5 {[%clk 0:02:59.6]} 3. Nf3 {[%clk 0:03:03.2]} 3... Nf6 {[%clk 0:03:00.7]} 4.
e5 {[%clk 0:03:03.5]} 4... Ne4 {[%clk 0:03:01.9]} 5. Ne2 {[%clk 0:03:02.5]} 5...
Qb6 {[%clk 0:03:02.8]} 6. d4 {[%clk 0:03:03]} 6... e6 {[%clk 0:02:34]} 7. Nfg1
{[%clk 0:03:01.8]} 7... f6 {[%clk 0:02:24.3]} 8. f3 {[%clk 0:02:31.6]} 8... Ng5
{[%clk 0:02:24.6]} 9. f4 {[%clk 0:02:20.7]} 9... Ne4 {[%clk 0:02:22.4]} 10. Ng3
{[%clk 0:02:18.5]} 10... Nxg3 {[%clk 0:02:04.1]} 11. hxg3 {[%clk 0:02:20.4]}
11... Nd7 {[%clk 0:01:54.5]} 12. Nf3 {[%clk 0:02:12.7]} 12... c5 {[%clk
0:01:41.9]} 13. Bd3 {[%clk 0:01:51.2]} 13... f5 {[%clk 0:01:37.5]} 14. Ng5
{[%clk 0:01:41.8]} 14... Be7 {[%clk 0:01:07.8]} 15. Nxh7 {[%clk 0:01:37.7]}
15... Kd8 {[%clk 0:00:59]} 16. Kf2 {[%clk 0:01:36.3]} 16... c4 {[%clk 0:00:45]}
17. Be2 {[%clk 0:01:35.4]} 17... Nf8 {[%clk 0:00:42.1]} 18. Nxf8 {[%clk
0:01:33.1]} 18... Rxf8 {[%clk 0:00:35.7]} 19. c3 {[%clk 0:01:30.9]} 19... Bd7
{[%clk 0:00:35.8]} 20. Rh7 {[%clk 0:01:24.5]} 20... Rg8 {[%clk 0:00:34.3]} 21.
Rb1 {[%clk 0:01:07.3]} 21... Kc7 {[%clk 0:00:27.8]} 22. b3 {[%clk 0:00:57.3]}
22... cxb3 {[%clk 0:00:28]} 23. axb3 {[%clk 0:00:56.6]} 23... Rac8 {[%clk
0:00:19.2]} 24. Be3 {[%clk 0:00:52.5]} 24... Kb8 {[%clk 0:00:19.8]} 25. c4
{[%clk 0:00:53.1]} 25... dxc4 {[%clk 0:00:20.2]} 26. bxc4 {[%clk 0:00:54.6]}
26... Qa5 {[%clk 0:00:17.6]} 27. d5 {[%clk 0:00:42.9]} 27... Bc5 {[%clk
0:00:17.8]} 28. dxe6 {[%clk 0:00:23.2]} 28... Bxe6 {[%clk 0:00:16.6]} 29. Bf3
{[%clk 0:00:17.9]} 29... Bxe3+ {[%clk 0:00:16.3]} 30. Kxe3 {[%clk 0:00:18.9]}
30... Qc5+ {[%clk 0:00:13.7]} 31. Qd4 {[%clk 0:00:17.8]} 31... Qxd4+ {[%clk
0:00:14.3]} 32. Kxd4 {[%clk 0:00:19.7]} 32... Rxc4+ {[%clk 0:00:15.7]} 33. Ke3
{[%clk 0:00:21.3]} 33... Rc7 {[%clk 0:00:15.6]} 34. Rd1 {[%clk 0:00:18.7]} 34...
Rgc8 {[%clk 0:00:11.5]} 35. Rd6 {[%clk 0:00:16.8]} 35... Rc3+ {[%clk 0:00:12.2]}
36. Kf2 {[%clk 0:00:17.4]} 36... Rc2+ {[%clk 0:00:12.5]} 37. Kg1 {[%clk
0:00:19]} 37... Rc1+ {[%clk 0:00:12.1]} 38. Kh2 {[%clk 0:00:20.6]} 38... Bc4
{[%clk 0:00:04.7]} 39. Rd7 {[%clk 0:00:20.4]} 39... Ba6 {[%clk 0:00:03.9]} 40.
Rdxg7 {[%clk 0:00:20.4]} 40... Rb1 {[%clk 0:00:03]} 41. g4 {[%clk 0:00:18.5]}
41... fxg4 {[%clk 0:00:02.8]} 42. Bxg4 {[%clk 0:00:20.4]} 42... Rf8 {[%clk
0:00:03.2]} 43. Rf7 {[%clk 0:00:18.4]} 43... Rg8 {[%clk 0:00:03.3]} 44. Rfg7
{[%clk 0:00:18.8]} 44... Rf8 {[%clk 0:00:04.1]} 45. Rf7 {[%clk 0:00:20.4]} 45...
Rg8 {[%clk 0:00:05.2]} 46. Rhg7 {[%clk 0:00:22]} 46... Rh8+ {[%clk 0:00:06.3]}
47. Kg3 {[%clk 0:00:23.7]} 47... Rb3+ {[%clk 0:00:06.4]} 48. Bf3 {[%clk
0:00:25.3]} 48... Rb4 {[%clk 0:00:03.2]} 49. e6 {[%clk 0:00:24.5]} 49... Kc8
{[%clk 0:00:04.6]} 50. e7 {[%clk 0:00:19.5]} 50... Bb5 {[%clk 0:00:05.3]} 51.
Rf8+ {[%clk 0:00:20.2]} 1-0

[Event "*** Titled Tuesday Blitz"]
[Site "Chess.com"]
[Date "2018.01.02"]
[Round "9"]
[White "AljoschaFeuerstack"]
[Black "attack2mateU"]
[Result "0-1"]
[WhiteElo "1909"]
[BlackElo "2603"]
[TimeControl "180+2"]
[EndTime "15:01:51 PST"]
[Termination "attack2mateU won by resignation"]

1. e4 {[%clk 0:03:01.8]} 1... c5 {[%clk 0:02:55.9]} 2. c3 {[%clk 0:03:00.8]}
2... Nf6 {[%clk 0:02:54.8]} 3. e5 {[%clk 0:03:00.6]} 3... Nd5 {[%clk 0:02:56.1]}
4. Nf3 {[%clk 0:03:02.4]} 4... Nc6 {[%clk 0:02:51.9]} 5. Bc4 {[%clk 0:03:03]}
5... Nb6 {[%clk 0:02:50.2]} 6. Bb3 {[%clk 0:03:04.2]} 6... c4 {[%clk 0:02:41.4]}
7. Bc2 {[%clk 0:03:03.3]} 7... d5 {[%clk 0:02:41.2]} 8. exd6 {[%clk 0:03:00.5]}
8... Qxd6 {[%clk 0:02:41.4]} 9. O-O {[%clk 0:03:01.2]} 9... Bg4 {[%clk
0:02:25.6]} 10. Re1 {[%clk 0:03:00.7]} 10... e6 {[%clk 0:02:12.8]} 11. b3 {[%clk
0:03:01.6]} 11... Qc7 {[%clk 0:01:56.5]} 12. Na3 {[%clk 0:02:58.6]} 12... Bxa3
{[%clk 0:01:13.1]} 13. Bxa3 {[%clk 0:02:58.3]} 13... O-O-O {[%clk 0:01:14.6]}
14. Qe2 {[%clk 0:02:49.6]} 14... Bxf3 {[%clk 0:00:56.9]} 15. gxf3 {[%clk
0:02:41.9]} 15... Rd5 {[%clk 0:00:53.9]} 16. bxc4 {[%clk 0:02:24.7]} 16... Rg5+
{[%clk 0:00:52.9]} 17. Kh1 {[%clk 0:02:25.5]} 17... Rh5 {[%clk 0:00:35.3]} 18.
f4 {[%clk 0:02:26.1]} 18... Rh4 {[%clk 0:00:36.2]} 19. Be4 {[%clk 0:01:53.6]}
19... Qxf4 {[%clk 0:00:36.4]} 20. f3 {[%clk 0:01:54.5]} 20... Nxc4 {[%clk
0:00:33.8]} 21. Bc5 {[%clk 0:01:48.2]} 21... Qxd2 {[%clk 0:00:21.5]} 22. Bxc6
{[%clk 0:01:02.6]} 22... bxc6 {[%clk 0:00:20.3]} 23. Bxa7 {[%clk 0:01:03.2]}
23... Qxe2 {[%clk 0:00:18.9]} 24. Rxe2 {[%clk 0:01:04.9]} 24... Rd8 {[%clk
0:00:19.3]} 25. Bd4 {[%clk 0:01:05.9]} 25... f6 {[%clk 0:00:19.2]} 26. Rxe6
{[%clk 0:01:04.4]} 26... Kd7 {[%clk 0:00:14.8]} 27. Rae1 {[%clk 0:01:03.5]}
27... Ra8 {[%clk 0:00:15.2]} 28. Re7+ {[%clk 0:01:04.3]} 28... Kd6 {[%clk
0:00:16.4]} 29. Rxg7 {[%clk 0:01:01.4]} 29... Rxa2 {[%clk 0:00:17.5]} 30. Rg2
{[%clk 0:00:52.6]} 30... Rxg2 {[%clk 0:00:13.4]} 31. Kxg2 {[%clk 0:00:54.3]}
31... Rh6 {[%clk 0:00:12.2]} 32. f4 {[%clk 0:00:34.8]} 32... c5 {[%clk
0:00:10.9]} 33. Bf2 {[%clk 0:00:34]} 33... Kd5 {[%clk 0:00:09.5]} 34. h4 {[%clk
0:00:34]} 34... Rg6+ {[%clk 0:00:10.1]} 35. Kf3 {[%clk 0:00:35.3]} 35... h5
{[%clk 0:00:11.7]} 36. f5 {[%clk 0:00:34.3]} 36... Rg4 {[%clk 0:00:07.9]} 37.
Rd1+ {[%clk 0:00:34.4]} 37... Kc6 {[%clk 0:00:08.6]} 38. Re1 {[%clk 0:00:35.6]}
38... Ne5+ {[%clk 0:00:09.7]} 39. Ke3 {[%clk 0:00:34]} 39... Kd5 {[%clk
0:00:11]} 40. Rd1+ {[%clk 0:00:33.2]} 40... Kc6 {[%clk 0:00:12.1]} 41. Ra1
{[%clk 0:00:32.5]} 41... Rg2 {[%clk 0:00:12.7]} 42. Bg1 {[%clk 0:00:17.7]} 42...
Kd5 {[%clk 0:00:13.8]} 43. Rd1+ {[%clk 0:00:17.4]} 43... Kc4 {[%clk 0:00:14.8]}
44. Kf4 {[%clk 0:00:15.9]} 44... Rg4+ {[%clk 0:00:12.5]} 45. Ke3 {[%clk
0:00:17.2]} 45... Rxh4 {[%clk 0:00:14.1]} 46. Bf2 {[%clk 0:00:17.9]} 46... Rh3+
{[%clk 0:00:15.4]} 47. Ke2 {[%clk 0:00:19.2]} 47... Ng4 {[%clk 0:00:14.3]} 48.
Bg1 {[%clk 0:00:18.9]} 48... Rxc3 {[%clk 0:00:14.6]} 49. Rd6 {[%clk 0:00:19.6]}
49... Rg3 {[%clk 0:00:13.3]} 50. Kf1 {[%clk 0:00:18.3]} 50... Rf3+ {[%clk
0:00:14.7]} 51. Ke2 {[%clk 0:00:19]} 51... Rxf5 {[%clk 0:00:16.6]} 52. Rc6
{[%clk 0:00:19.6]} 52... h4 {[%clk 0:00:16.4]} 53. Rc7 {[%clk 0:00:19.2]} 53...
h3 {[%clk 0:00:17]} 54. Rh7 {[%clk 0:00:20.3]} 54... h2 {[%clk 0:00:17.7]} 0-1

[Event "*** Titled Tuesday Blitz"]
[Site "Chess.com"]
[Date "2018.01.02"]
[Round "9"]
[White "Kawhi_Leonard2"]
[Black "MatthewG-p4p"]
[Result "0-1"]
[WhiteElo "2185"]
[BlackElo "2599"]
[TimeControl "180+2"]
[EndTime "15:01:51 PST"]
[Termination "MatthewG-p4p won by resignation"]

1. e4 {[%clk 0:03:01.9]} 1... e6 {[%clk 0:03:00.9]} 2. d4 {[%clk 0:03:01.8]}
2... d5 {[%clk 0:03:02.4]} 3. Nd2 {[%clk 0:03:03.3]} 3... c5 {[%clk 0:03:03.2]}
4. exd5 {[%clk 0:03:03.8]} 4... cxd4 {[%clk 0:03:04.6]} 5. Ngf3 {[%clk 0:03:03]}
5... Qxd5 {[%clk 0:03:05.8]} 6. Bc4 {[%clk 0:03:04]} 6... Qd6 {[%clk 0:03:07.1]}
7. O-O {[%clk 0:03:05.4]} 7... Nf6 {[%clk 0:02:56.5]} 8. Nb3 {[%clk 0:03:05.7]}
8... Nc6 {[%clk 0:02:58.1]} 9. Nbxd4 {[%clk 0:03:06.9]} 9... Nxd4 {[%clk
0:02:59.7]} 10. Nxd4 {[%clk 0:03:08.5]} 10... a6 {[%clk 0:03:01.6]} 11. Re1
{[%clk 0:03:08.7]} 11... Qc7 {[%clk 0:03:01.6]} 12. Bf1 {[%clk 0:03:09.6]} 12...
Bd7 {[%clk 0:03:00.8]} 13. Qf3 {[%clk 0:03:06.8]} 13... O-O-O {[%clk 0:02:55]}
14. Be3 {[%clk 0:03:04.6]} 14... e5 {[%clk 0:02:54.5]} 15. Nf5 {[%clk 0:02:39]}
15... e4 {[%clk 0:02:53.8]} 16. Qh3 {[%clk 0:02:26.6]} 16... Qa5 {[%clk
0:02:43]} 17. g4 {[%clk 0:02:22.7]} 17... h5 {[%clk 0:02:43.2]} 18. Be2 {[%clk
0:02:04]} 18... g6 {[%clk 0:02:39]} 19. Qh4 {[%clk 0:02:02.2]} 19... Nd5 {[%clk
0:02:29]} 20. Bd4 {[%clk 0:01:41.8]} 20... Rg8 {[%clk 0:02:21]} 21. Ne3 {[%clk
0:01:36.9]} 21... Be7 {[%clk 0:02:11.7]} 22. Qg3 {[%clk 0:01:35.1]} 22... hxg4
{[%clk 0:02:04.8]} 23. Bc4 {[%clk 0:01:15.5]} 23... Nxe3 {[%clk 0:02:01.8]} 24.
Qxe3 {[%clk 0:01:14.2]} 24... Qf5 {[%clk 0:01:35.3]} 25. Qxe4 {[%clk 0:01:07.5]}
25... Bd6 {[%clk 0:01:32.4]} 26. Qxf5 {[%clk 0:00:44.8]} 26... Bxf5 {[%clk
0:01:33.1]} 27. Be5 {[%clk 0:00:45.7]} 27... Rgf8 {[%clk 0:01:28.4]} 28. Bg7
{[%clk 0:00:43.2]} 28... Rfe8 {[%clk 0:01:22.9]} 29. Bxf7 {[%clk 0:00:41.9]}
29... Rxe1+ {[%clk 0:01:23.1]} 30. Rxe1 {[%clk 0:00:42]} 30... Rd7 {[%clk
0:01:23]} 31. Be6 {[%clk 0:00:22]} 31... Bxe6 {[%clk 0:01:21.9]} 32. Rxe6 {[%clk
0:00:22.7]} 32... Bc5 {[%clk 0:01:14]} 33. Rxg6 {[%clk 0:00:22.1]} 33... Rd2
{[%clk 0:01:14.7]} 34. Rxg4 {[%clk 0:00:20.1]} 34... Bxf2+ {[%clk 0:01:13.1]}
35. Kf1 {[%clk 0:00:19.6]} 35... Rxc2 {[%clk 0:01:14]} 36. h4 {[%clk 0:00:20.8]}
36... Be3 {[%clk 0:01:12.8]} 37. h5 {[%clk 0:00:21.3]} 37... Rh2 {[%clk
0:01:13.7]} 38. Re4 {[%clk 0:00:19.4]} 38... Bc1 {[%clk 0:01:11.8]} 39. Rc4+
{[%clk 0:00:16.8]} 39... Kd7 {[%clk 0:01:12.9]} 40. Rxc1 {[%clk 0:00:17.7]}
40... Rh1+ {[%clk 0:01:14.2]} 41. Ke2 {[%clk 0:00:18.9]} 41... Rxc1 {[%clk
0:01:14.9]} 42. h6 {[%clk 0:00:20.4]} 42... Rh1 {[%clk 0:01:07.1]} 43. Kd3
{[%clk 0:00:21.2]} 43... Ke6 {[%clk 0:01:07]} 44. Kc4 {[%clk 0:00:22]} 44... Rh5
{[%clk 0:01:07.8]} 45. a4 {[%clk 0:00:21.8]} 45... b6 {[%clk 0:01:01.1]} 46. b4
{[%clk 0:00:22.7]} 46... Rh4+ {[%clk 0:01:01.9]} 47. Kd3 {[%clk 0:00:20.1]}
47... Kd5 {[%clk 0:01:02.9]} 48. Ke3 {[%clk 0:00:20.5]} 48... Kc4 {[%clk
0:01:03]} 49. b5 {[%clk 0:00:20.8]} 49... a5 {[%clk 0:01:00.7]} 50. Kf3 {[%clk
0:00:21.3]} 50... Kb3 {[%clk 0:00:59.8]} 51. Kg3 {[%clk 0:00:22.8]} 51... Rh1
{[%clk 0:01:00.8]} 52. Kg4 {[%clk 0:00:24]} 52... Kxa4 {[%clk 0:01:01.9]} 53.
Kg5 {[%clk 0:00:25.5]} 53... Kxb5 {[%clk 0:01:02.5]} 54. Kg6 {[%clk 0:00:27.1]}
54... Kc4 {[%clk 0:01:00.2]} 55. h7 {[%clk 0:00:28.5]} 55... Rxh7 {[%clk
0:00:59.2]} 56. Kxh7 {[%clk 0:00:29.8]} 56... b5 {[%clk 0:00:59.9]} 57. Kg6
{[%clk 0:00:30.9]} 57... b4 {[%clk 0:00:59.4]} 58. Kf5 {[%clk 0:00:32]} 58...
Kd3 {[%clk 0:00:45]} 59. Bf8 {[%clk 0:00:28.9]} 59... b3 {[%clk 0:00:38.1]} 60.
Ba3 {[%clk 0:00:29.6]} 60... Kc2 {[%clk 0:00:38.9]} 61. Ke4 {[%clk 0:00:30.9]}
61... b2 {[%clk 0:00:36.8]} 62. Bxb2 {[%clk 0:00:31.6]} 62... Kxb2 {[%clk
0:00:38.7]} 63. Kd3 {[%clk 0:00:32.4]} 63... a4 {[%clk 0:00:40.1]} 0-1

[Event "*** Titled Tuesday Blitz"]
[Site "Chess.com"]
[Date "2018.01.02"]
[Round "9"]
[White "GGuseinov"]
[Black "severomorskij"]
[Result "1-0"]
[WhiteElo "2734"]
[BlackElo "2677"]
[TimeControl "180+2"]
[EndTime "15:02:08 PST"]
[Termination "GGuseinov won by resignation"]

1. e4 {[%clk 0:03:01.9]} 1... c5 {[%clk 0:03:00.8]} 2. Nc3 {[%clk 0:03:02.3]}
2... Nc6 {[%clk 0:03:00.1]} 3. Nf3 {[%clk 0:03:03]} 3... e5 {[%clk 0:02:56.1]}
4. Bc4 {[%clk 0:03:03.5]} 4... Be7 {[%clk 0:02:56.5]} 5. d3 {[%clk 0:03:04.3]}
5... Nf6 {[%clk 0:02:55.4]} 6. Ng5 {[%clk 0:03:03.1]} 6... O-O {[%clk
0:02:56.1]} 7. O-O {[%clk 0:03:03.9]} 7... d6 {[%clk 0:02:57.1]} 8. f4 {[%clk
0:03:04]} 8... Bg4 {[%clk 0:02:57.5]} 9. Qe1 {[%clk 0:03:03.2]} 9... exf4 {[%clk
0:02:50.9]} 10. Bxf4 {[%clk 0:03:05.1]} 10... Nd4 {[%clk 0:02:40]} 11. Qd2
{[%clk 0:03:05.1]} 11... Qd7 {[%clk 0:02:35.9]} 12. Be3 {[%clk 0:02:51.4]} 12...
a6 {[%clk 0:02:03.4]} 13. a4 {[%clk 0:02:41.5]} 13... h6 {[%clk 0:01:50.4]} 14.
Nf3 {[%clk 0:02:35.7]} 14... Nxf3+ {[%clk 0:01:51.2]} 15. gxf3 {[%clk
0:02:36.3]} 15... Be6 {[%clk 0:01:52.7]} 16. Kh1 {[%clk 0:02:27.7]} 16... Kh7
{[%clk 0:01:53.5]} 17. Qg2 {[%clk 0:02:11.3]} 17... Bh3 {[%clk 0:01:51.3]} 18.
Qf2 {[%clk 0:01:53.6]} 18... Bxf1 {[%clk 0:01:51.7]} 19. Rxf1 {[%clk 0:01:55.5]}
19... Qh3 {[%clk 0:01:34.2]} 20. Nd5 {[%clk 0:01:46.6]} 20... Nxd5 {[%clk
0:01:34.3]} 21. Bxd5 {[%clk 0:01:48.5]} 21... Bh4 {[%clk 0:01:29.3]} 22. Qe2
{[%clk 0:01:45]} 22... Rab8 {[%clk 0:01:24.2]} 23. f4 {[%clk 0:01:41.8]} 23...
f5 {[%clk 0:01:14.3]} 24. Rg1 {[%clk 0:01:22.2]} 24... Bf6 {[%clk 0:00:46.1]}
25. Rg3 {[%clk 0:01:15.2]} 25... Qh4 {[%clk 0:00:43.8]} 26. c3 {[%clk
0:01:14.5]} 26... g5 {[%clk 0:00:33.4]} 27. exf5 {[%clk 0:00:54.7]} 27... Rbe8
{[%clk 0:00:18]} 28. Be6 {[%clk 0:00:49.2]} 28... gxf4 {[%clk 0:00:14.8]} 29.
Rg4 {[%clk 0:00:46.2]} 29... Qh3 {[%clk 0:00:15.1]} 30. Bxf4 {[%clk 0:00:43.9]}
30... Be5 {[%clk 0:00:10.1]} 31. Rg3 {[%clk 0:00:35]} 31... Qh4 {[%clk
0:00:09.7]} 32. Rg4 {[%clk 0:00:34.3]} 32... Qh3 {[%clk 0:00:10.2]} 33. Rg3
{[%clk 0:00:22]} 33... Qh4 {[%clk 0:00:11.2]} 34. Bxe5 {[%clk 0:00:19.9]} 34...
dxe5 {[%clk 0:00:10.8]} 35. Qxe5 {[%clk 0:00:19.7]} 35... Qf6 {[%clk 0:00:08.2]}
36. Qxf6 {[%clk 0:00:15.8]} 36... Rxf6 {[%clk 0:00:09.3]} 37. d4 {[%clk
0:00:16.4]} 37... cxd4 {[%clk 0:00:09.7]} 38. cxd4 {[%clk 0:00:18.3]} 38... Rd8
{[%clk 0:00:09.7]} 39. d5 {[%clk 0:00:18]} 39... b6 {[%clk 0:00:09.4]} 40. Rc3
{[%clk 0:00:17.9]} 40... Kg7 {[%clk 0:00:07.3]} 41. Rc7+ {[%clk 0:00:18.4]}
41... Kf8 {[%clk 0:00:08.3]} 42. Kg2 {[%clk 0:00:18.4]} 42... h5 {[%clk
0:00:07.6]} 43. Kf3 {[%clk 0:00:17.5]} 43... Rh6 {[%clk 0:00:07.9]} 44. Kf4
{[%clk 0:00:16.9]} 44... h4 {[%clk 0:00:08.8]} 45. Kg5 {[%clk 0:00:16.2]} 45...
Rh8 {[%clk 0:00:08.6]} 46. h3 {[%clk 0:00:12.7]} 46... Ke8 {[%clk 0:00:06.6]}
47. f6 {[%clk 0:00:13.3]} 47... b5 {[%clk 0:00:05.7]} 48. axb5 {[%clk
0:00:12.5]} 48... axb5 {[%clk 0:00:07.6]} 49. b4 {[%clk 0:00:13.3]} 49... Rb8
{[%clk 0:00:06]} 50. Kg6 {[%clk 0:00:13.2]} 50... Rf8 {[%clk 0:00:05.5]} 51. d6
{[%clk 0:00:12.7]} 51... Rh8 {[%clk 0:00:04.9]} 52. d7+ {[%clk 0:00:12.8]} 52...
Kd8 {[%clk 0:00:05]} 53. Rc8+ {[%clk 0:00:13.9]} 1-0